bitfinex/quotes_SOLUSD_20250930
["timestamp","ask_amount","ask_price","bid_price","bid_amount"]
[1759241070680,6.55665066,206.91,206.84,6.55665066]
[1759241070996,6.55665066,206.92,206.81,4.83535612]
[1759241071403,6.55665066,206.92,206.85,6.55665066]
[1759241071986,6.55665066,206.92,206.81,4.83535612]
[1759241072191,36.76,206.91,206.81,4.83535612]
[1759241072607,36.76,206.91,206.87,6.55665066]
[1759241072913,4.83325277,206.9,206.85,6.55665066]
[1759241073114,41.5930595,206.91,206.86,6.55665066]
[1759241073308,36.76,206.9,206.87,6.55665066]
[1759241073504,36.76,206.9,206.88,6.55665066]
[1759241073707,11.3887357,206.95,206.88,6.55665066]
[1759241073911,24.71663199,207.14,206.79,41.10450214]
[1759241073912,12.07696472,207.01,206.93,6.55665066]
[1759241074106,36.76,207.0,206.95,6.55665066]
[1759241074304,41.20434123,207.0,206.94,4.44434123]
[1759241074500,36.76,207.0,206.94,4.44434123]
[1759241074697,41.20434123,207.0,206.94,4.44434123]
[1759241074897,4.83045116,207.02,206.97,4.44434123]
[1759241075203,36.74,206.99,206.97,4.44434123]
[1759241075606,36.74,206.99,206.87,24.16935524]
[1759241075607,36.74,206.99,206.98,4.44434123]
[1759241075803,36.74,206.99,206.9,4.83305837]
[1759241076005,36.74,206.99,206.86,12.08508655]
[1759241076307,36.74,206.99,206.94,4.44434123]
[1759241076703,36.74,206.99,206.93,4.44434123]
[1759241076924,36.76,206.98,206.97,4.44434123]
[1759241077519,39.65025109,207.03,206.97,4.44434123]
[1759241077723,36.76,207.02,206.98,4.44434123]
[1759241078023,34.82,207.03,206.99,4.44434123]
[1759241078315,36.74,207.02,207.01,4.44434123]
[1759241079421,4.44434123,207.08,207.01,9.27502573]
[1759241079627,36.72,207.07,207.05,4.44434123]
[1759241079798,12.07089865,207.11,207.05,4.44434123]
[1759241080001,20.8,207.14,207.06,4.44434123]
[1759241080002,32.86929785,207.14,207.06,4.44434123]
[1759241080220,32.86929785,207.14,207.01,16.90739576]
[1759241080221,4.82788586,207.13,207.08,4.44434123]
[1759241080412,36.7,207.12,207.08,4.44434123]
[1759241080804,36.7,207.12,207.06,4.44434123]
[1759241081129,4.82835208,207.11,207.06,4.44434123]
[1759241081299,36.7,207.12,207.07,4.44434123]
[1759241081504,34.82,207.18,207.08,4.44434123]
[1759241081699,4.44434123,207.14,207.08,4.44434123]
[1759241082125,41.5069537,207.17,207.1,4.44434123]
[1759241082429,4.44434123,207.11,206.97,20.8]
[1759241082603,4.44434123,207.07,206.93,4.83255207]
[1759241082921,4.44434123,207.02,206.93,4.83255207]
[1759241083112,41.53077219,207.01,206.96,4.44434123]
[1759241083307,36.7,207.01,206.97,4.44434123]
[1759241083537,20.8,207.15,207.0,4.44434123]
[1759241083824,20.8,207.15,206.93,4.83255207]
[1759241083825,4.44434123,207.04,206.97,4.44434123]
[1759241084025,36.68,207.03,206.97,4.44434123]
[1759241084327,4.44434123,207.01,206.93,4.83255207]
[1759241084527,4.44434123,207.01,206.95,4.44434123]
[1759241085325,9.27483467,207.02,206.95,4.44434123]
[1759241085531,36.66,207.01,206.99,4.44434123]
[1759241085717,13.59559401,207.07,206.92,9.27711991]
[1759241085718,4.82976662,207.05,207.0,4.44434123]
[1759241085905,36.66,207.04,207.0,4.44434123]
[1759241086420,4.44434123,207.02,206.9,4.8330519]
[1759241086610,4.44434123,207.0,206.9,4.8330519]
[1759241086818,16.90414478,207.05,206.95,4.44434123]
[1759241087006,4.44434123,207.03,206.97,4.44434123]
[1759241087205,36.68,207.02,206.97,4.44434123]
[1759241087421,41.12434123,207.02,206.95,4.44434123]
[1759241087647,36.68,207.02,206.93,4.83255207]
[1759241087816,36.68,207.02,206.96,4.44434123]
[1759241088245,36.68,207.02,206.97,4.44434123]
[1759241088537,36.68,207.02,206.98,4.44434123]
[1759241088755,4.8299917,207.04,206.98,4.44434123]
[1759241088916,36.64,207.03,206.98,4.44434123]
[1759241089117,36.64,207.03,206.89,20.8]
[1759241089332,36.64,207.03,206.81,13.59559401]
[1759241089333,4.44434123,206.99,206.88,20.8]
[1759241089542,4.44434123,206.99,206.79,78.99887743]
[1759241089543,41.10434123,206.98,206.92,4.44434123]
[1759241089842,36.66,206.98,206.97,4.44434123]
[1759241090051,12.07292183,207.08,206.97,4.44434123]
[1759241090252,41.52928478,207.07,207.01,4.44434123]
[1759241090419,45.97362601,207.07,207.0,4.44434123]
[1759241090622,4.8287518,207.1,207.02,4.44434123]
[1759241090820,34.82,207.18,206.92,4.44434123]
[1759241090821,12.06919453,207.14,206.92,4.44434123]
[1759241091066,41.16434123,207.13,207.06,4.44434123]
[1759241091347,41.54811896,207.12,207.07,4.44434123]
[1759241091533,4.44434123,207.11,207.04,4.44434123]
[1759241091734,36.72,207.12,207.06,4.44434123]
[1759241091948,36.72,207.12,207.08,4.44434123]
[1759241092130,36.72,207.12,207.06,4.44434123]
[1759241092441,36.72,207.12,206.98,16.90984635]
[1759241092442,4.44434123,207.08,206.98,16.90984635]
[1759241092650,36.7,207.07,207.04,4.44434123]
[1759241092829,36.2,207.07,207.06,4.44434123]
[1759241093217,36.2,207.07,207.05,4.44434123]
[1759241093423,36.2,207.07,207.04,4.44434123]
[1759241094129,4.82907778,207.08,206.98,16.90984635]
[1759241094130,4.82602191,207.21,207.06,4.44434123]
[1759241094340,27.82434123,207.2,207.14,4.44434123]
[1759241094767,27.82434123,207.2,207.02,20.8]
[1759241094935,4.44434123,207.18,207.11,4.44434123]
[1759241095128,4.44434123,207.16,207.09,4.44434123]
[1759241095331,23.38,207.2,207.01,20.8]
[1759241095332,4.44434123,207.18,207.11,4.44434123]
[1759241095660,41.14434123,207.17,207.1,4.44434123]
[1759241095869,39.90568379,207.17,207.11,4.44434123]
[1759241096228,36.7,207.17,207.11,4.44434123]
[1759241096460,44.35002502,207.17,207.1,4.44434123]
[1759241096636,44.35002502,207.17,207.14,4.44434123]
[1759241096637,36.7,207.17,207.14,4.44434123]
[1759241096953,36.7,207.17,207.08,16.9016805]
[1759241096954,36.68,207.17,207.16,4.44434123]
[1759241097139,36.68,207.17,207.15,4.44434123]
[1759241097342,18.23993524,207.22,207.08,16.9016805]
[1759241097343,0.2,207.22,207.16,4.44434123]
[1759241097654,36.68,207.21,207.19,4.44434123]
[1759241098022,36.68,207.21,207.17,4.44434123]
[1759241098846,36.68,207.21,207.19,4.44434123]
[1759241099045,0.2,207.22,207.2,4.44434123]
[1759241099352,0.2,207.22,207.21,4.44434123]
[1759241100051,9.47016371,207.22,207.15,4.44434123]
[1759241100349,21.53463625,207.22,207.15,4.44434123]
[1759241100550,4.44434123,207.19,207.13,4.44434123]
[1759241100758,36.68,207.18,207.13,4.44434123]
[1759241100961,4.44434123,207.17,206.99,14.51765104]
[1759241101168,4.44434123,207.15,207.0,16.90821255]
[1759241101465,4.44434123,207.16,206.95,43.46792675]
[1759241101629,4.44434123,207.13,206.96,16.91148047]
[1759241101836,16.8959691,207.15,206.96,16.91148047]
[1759241101837,4.44434123,207.09,207.02,4.44434123]
[1759241102142,41.12434123,207.12,207.05,4.44434123]
[1759241102387,16.8959691,207.15,206.96,16.91148047]
[1759241102388,4.82741974,207.15,207.07,4.44434123]
[1759241102685,36.72,207.14,207.1,4.44434123]
[1759241102860,36.72,207.14,207.09,4.44434123]
[1759241103062,36.72,207.14,207.1,4.44434123]
[1759241103260,36.72,207.14,207.09,4.44434123]
[1759241103499,36.72,207.14,207.1,4.44434123]
[1759241103660,36.72,207.14,207.11,4.44434123]
[1759241103860,36.72,207.14,207.09,4.82881276]
[1759241104062,36.72,207.14,207.11,4.44434123]
[1759241104268,36.72,207.14,207.13,4.44434123]
[1759241104576,36.7,207.15,207.1,4.44434123]
[1759241104772,36.7,207.15,207.09,4.44434123]
[1759241105592,4.82881838,207.09,206.92,19.29052545]
[1759241105797,4.44434123,207.06,206.98,4.44434123]
[1759241105961,4.44434123,207.04,206.96,4.44434123]
[1759241106179,4.44434123,207.04,206.9,16.91638471]
[1759241106496,4.44434123,207.04,206.95,4.44434123]
[1759241106700,36.68,207.08,206.9,16.91638471]
[1759241106904,4.44434123,207.0,206.92,4.44434123]
[1759241107208,36.74,206.99,206.92,4.44434123]
[1759241107610,4.83138467,206.98,206.92,4.44434123]
[1759241107903,4.44434123,207.01,206.93,4.44434123]
[1759241108117,36.72,207.02,206.95,4.44434123]
[1759241108316,36.72,207.02,206.88,20.8]
[1759241108317,36.72,207.02,206.97,4.44434123]
[1759241108478,4.44434123,206.98,206.85,16.92047376]
[1759241108686,13.59559401,207.01,206.85,16.92047376]
[1759241108881,4.44434123,206.97,206.89,4.44434123]
[1759241109086,36.74,206.96,206.89,4.44434123]
[1759241109610,36.74,206.96,206.81,24.17635235]
[1759241109870,58.0960353,206.96,206.84,12.08639832]
[1759241110001,4.44434123,206.93,206.85,4.44434123]
[1759241110197,4.44434123,206.93,206.82,4.83512232]
[1759241110378,4.44434123,206.92,206.84,4.44434123]
[1759241110585,4.44434123,206.94,206.86,4.44434123]
[1759241110803,4.44434123,206.94,206.82,4.83512232]
[1759241111089,46.01640639,206.96,206.87,4.44434123]
[1759241111514,4.83301918,206.91,206.78,0.47525557]
[1759241111817,36.7,206.9,206.83,4.44434123]
[1759241111987,36.7,206.95,206.88,4.44434123]
[1759241112187,36.7,206.94,206.88,4.44434123]
[1759241112391,41.14434123,206.94,206.86,4.44434123]
[1759241112580,4.44434123,206.91,206.83,4.44434123]
[1759241113009,4.44434123,206.93,206.85,4.44434123]
[1759241113316,36.68,206.92,206.79,20.8]
[1759241113650,16.91556714,206.91,206.78,0.47525557]
[1759241113940,4.44434123,206.85,206.78,0.47525557]
[1759241114150,36.7,206.84,206.78,0.47525557]
[1759241114439,25.63236635,206.94,206.78,5.31115981]
[1759241114618,4.44434123,206.9,206.82,4.44434123]
[1759241114813,36.7,206.93,206.78,17.40130392]
[1759241114814,4.44434123,206.86,206.78,5.31115981]
[1759241115016,4.44434123,206.85,206.78,5.31125429]
[1759241115234,4.44434123,206.85,206.78,0.47525557]
[1759241115414,36.74,206.85,206.8,4.44434123]
[1759241115622,36.74,206.85,206.78,0.47525557]
[1759241115816,4.44434123,206.82,206.78,0.47525557]
[1759241116137,4.44434123,206.8,206.78,0.47525557]
[1759241116506,16.92049147,206.85,206.78,0.47525557]
[1759241116507,36.74,206.79,206.78,0.47525557]
[1759241116712,12.08455997,206.88,206.78,0.47525557]
[1759241116908,36.74,206.87,206.78,0.47525557]
[1759241117136,4.44434123,206.84,206.78,0.47525557]
[1759241117387,4.44434123,206.81,206.78,0.47525557]
[1759241117521,4.83582378,206.79,206.78,0.47525557]
[1759241117939,41.18434123,206.8,206.78,0.47525557]
[1759241118234,36.74,206.81,206.78,0.47525557]
[1759241119215,4.44434123,206.8,206.78,0.47525557]
[1759241119410,36.74,206.81,206.78,0.47525557]
[1759241119631,41.57541739,206.81,206.78,0.47525557]
[1759241119831,36.74,206.81,206.78,0.47525557]
[1759241120235,4.44434123,206.79,206.78,0.47525557]
[1759241120436,4.83540472,206.81,206.78,0.47525557]
[1759241120743,4.44434123,206.79,206.78,0.47525557]
[1759241120919,41.16434123,206.8,206.78,0.47525557]
[1759241121128,4.44434123,206.79,206.78,0.47525557]
[1759241121334,34.39559401,206.84,206.78,0.47525557]
[1759241121335,4.83487128,206.84,206.78,0.47525557]
[1759241121651,4.44434123,206.8,206.78,0.47525557]
[1759241121835,4.44434123,206.83,206.78,0.47525557]
[1759241122028,4.44434123,206.81,206.78,0.47525557]
[1759241122226,20.8,206.84,206.78,0.47525557]
[1759241122227,36.72,206.8,206.78,0.47525557]
[1759241122529,20.8,206.84,206.78,0.47525557]
[1759241122736,36.7,206.83,206.79,4.44434123]
[1759241122949,36.7,206.82,206.79,4.44434123]
[1759241123142,36.7,206.82,206.78,5.31129907]
[1759241123143,36.7,206.82,206.78,0.47525557]
[1759241123363,36.7,206.82,206.78,4.9195968]
[1759241123645,4.44434123,206.89,206.81,4.44434123]
[1759241123848,4.44434123,206.83,206.78,0.47525557]
[1759241124145,36.7,206.82,206.78,0.47525557]
[1759241124359,34.39559401,206.88,206.78,4.9195968]
[1759241124644,21.35909088,206.92,206.78,4.9195968]
[1759241124645,4.83278561,206.92,206.84,4.44434123]
[1759241124881,36.74,206.91,206.84,4.44434123]
[1759241125348,41.18434123,206.91,206.84,4.44434123]
[1759241125525,4.44434123,206.9,206.82,4.44434123]
[1759241125855,36.72,206.89,206.86,4.44434123]
[1759241126268,34.82,206.93,206.88,4.44434123]
[1759241126557,36.72,206.93,206.9,4.44434123]
[1759241126866,41.16434123,206.93,206.86,4.44434123]
[1759241127052,41.16434123,206.93,206.87,4.44434123]
[1759241127359,36.72,206.92,206.83,16.92210993]
[1759241127557,9.27549249,206.99,206.91,4.44434123]
[1759241127848,4.44434123,206.96,206.9,4.44434123]
[1759241128239,4.44434123,206.96,206.89,4.44434123]
[1759241128839,4.44434123,207.0,206.93,4.44434123]
[1759241129151,41.16434123,206.99,206.92,4.44434123]
[1759241129463,41.16434123,206.99,206.93,4.44434123]
[1759241129651,36.72,206.99,206.93,4.44434123]
[1759241129853,4.44434123,206.98,206.87,4.83395369]
[1759241130047,36.72,206.98,206.95,4.44434123]
[1759241130253,36.72,206.98,206.96,4.44434123]
[1759241130557,36.72,206.98,206.87,16.91883791]
[1759241130558,36.82,207.0,206.97,4.44434123]
[1759241130759,36.82,207.0,206.95,4.44434123]
[1759241130933,36.82,207.0,206.93,4.44434123]
[1759241130934,4.44434123,206.99,206.93,4.44434123]
[1759241131139,4.44434123,206.96,206.87,4.83395369]
[1759241131461,4.44434123,206.95,206.81,12.08812154]
[1759241131664,21.35827347,206.93,206.82,4.83497734]
[1759241131963,4.44434123,206.92,206.86,4.44434123]
[1759241132266,4.83255207,206.93,206.87,4.44434123]
[1759241132452,4.83255207,206.93,206.88,4.44434123]
[1759241132839,4.44434123,206.95,206.89,4.44434123]
[1759241133049,36.8,206.94,206.93,4.44434123]
[1759241133242,36.8,206.95,206.93,4.44434123]
[1759241133456,36.8,206.97,206.94,4.44434123]
[1759241133665,36.84,206.99,206.97,4.8316181]
[1759241133938,36.84,207.02,206.98,4.44434123]
[1759241134243,36.84,207.02,207.01,4.44434123]
[1759241134436,36.84,207.03,207.01,4.44434123]
[1759241134668,36.84,207.03,206.99,4.44434123]
[1759241135170,36.84,207.03,207.0,4.44434123]
[1759241135378,36.84,207.03,206.98,4.44434123]
[1759241135544,41.28434123,207.03,206.97,4.44434123]
[1759241135746,36.84,207.03,206.99,4.44434123]
[1759241135975,46.11467093,207.03,206.91,16.91556714]
[1759241136275,36.84,207.03,206.98,6.56611812]
[1759241136459,36.84,207.03,206.91,16.91556714]
[1759241136460,41.67021976,207.03,206.97,6.56611812]
[1759241136656,41.67021976,207.03,206.98,6.56611812]
[1759241136981,48.23633788,207.03,206.97,6.56611812]
[1759241137140,6.56611812,207.02,206.91,16.91556714]
[1759241137339,48.23633788,207.03,206.91,16.91556714]
[1759241137564,6.56611812,206.99,206.9,4.8332158]
[1759241137773,36.78,206.98,206.93,6.56611812]
[1759241137978,36.78,206.98,206.95,6.56611812]
[1759241138140,36.78,206.99,206.97,6.56611812]
[1759241138339,36.76,207.0,206.98,6.56611812]
[1759241138739,36.76,207.0,206.97,6.56611812]
[1759241138940,4.82954378,207.06,206.99,6.56611812]
[1759241139152,36.78,207.05,207.02,6.56611812]
[1759241139359,36.78,207.05,207.03,6.56611812]
[1759241139565,36.76,207.04,207.02,6.56611812]
[1759241139761,36.76,207.04,207.01,6.56611812]
[1759241139962,6.56611812,207.08,207.01,6.56611812]
[1759241140142,34.84,207.09,207.02,6.56611812]
[1759241140345,36.76,207.08,207.05,6.56611812]
[1759241140550,34.84,207.09,207.06,6.56611812]
[1759241140768,4.82789831,207.13,207.08,6.56611812]
[1759241140946,36.76,207.12,207.08,6.56611812]
[1759241141574,36.74,207.11,207.07,6.56611812]
[1759241141742,36.74,207.1,207.05,6.56611812]
[1759241141942,6.56611812,207.07,206.95,25.63208504]
[1759241142147,6.56611812,207.06,206.88,139.56611812]
[1759241142454,6.56611812,207.03,206.88,23.48412771]
[1759241142644,43.30611812,207.02,206.96,6.56611812]
[1759241142839,36.74,207.01,206.95,6.56611812]
[1759241143041,36.74,207.01,206.88,16.91800959]
[1759241143042,6.56611812,206.99,206.88,16.91800959]
[1759241143242,36.74,207.01,206.9,6.56611812]
[1759241143446,6.56611812,206.97,206.9,6.56611812]
[1759241143680,36.8,206.96,206.9,6.56611812]
[1759241143978,6.56611812,206.97,206.94,6.56611812]
[1759241143979,36.78,206.97,206.94,6.56611812]
[1759241144154,36.78,206.97,206.95,6.56611812]
[1759241144354,36.78,206.97,206.96,6.56611812]
[1759241145078,36.78,206.97,206.94,6.56611812]
[1759241145269,36.78,206.97,206.93,6.56611812]
[1759241145468,36.78,206.97,206.92,6.56611812]
[1759241145857,11.39820316,206.95,206.89,6.56611812]
[1759241146286,6.56611812,206.93,206.82,4.83512232]
[1759241146579,43.32611812,206.92,206.86,6.56611812]
[1759241146866,36.76,206.92,206.84,6.56611812]
[1759241147060,6.56611812,206.91,206.84,6.56611812]
[1759241148054,36.76,206.92,206.77,0.1]
[1759241148055,6.56611812,206.9,206.79,4.8358181]
[1759241148254,6.56611812,206.91,206.84,6.56611812]
[1759241148551,36.74,206.9,206.87,6.56611812]
[1759241148761,13.59559401,206.97,206.88,6.56611812]
[1759241148964,6.56611812,206.93,206.87,6.56611812]
[1759241149163,6.56611812,206.94,206.88,6.56611812]
[1759241149676,6.56611812,206.93,206.86,6.56611812]
[1759241149866,6.56611812,206.93,206.87,6.56611812]
[1759241150065,6.56611812,206.94,206.88,6.56611812]
[1759241150261,6.56611812,206.93,206.8,12.08877152]
[1759241150479,36.74,206.92,206.85,6.56611812]
[1759241150668,43.30611812,206.92,206.85,6.56611812]
[1759241150978,6.56611812,206.9,206.84,6.56611812]
[1759241151183,36.74,206.92,206.79,16.92538323]
[1759241151385,6.56611812,206.91,206.79,16.92538323]
[1759241151560,6.56611812,206.89,206.83,6.56611812]
[1759241151968,4.83348639,206.89,206.84,6.56611812]
[1759241152170,6.56611812,206.9,206.83,6.56611812]
[1759241152360,11.39921502,206.91,206.81,4.83535246]
[1759241152560,36.74,206.92,206.85,6.56611812]
[1759241152753,36.68,206.91,206.86,6.56611812]
[1759241152953,36.66,206.9,206.86,6.56611812]
[1759241153153,4.83231854,206.94,206.81,16.92374276]
[1759241153384,4.83115126,206.99,206.91,6.56611812]
[1759241153564,36.7,206.98,206.92,6.56611812]
[1759241153764,43.26611812,206.98,206.81,16.92374276]
[1759241154066,4.82998454,207.04,206.95,6.56611812]
[1759241154271,43.26611812,207.03,206.91,16.9154211]
[1759241154566,36.7,207.03,206.91,16.9154211]
[1759241154761,36.7,207.03,206.94,20.8]
[1759241154967,36.7,207.03,207.01,6.56611812]
[1759241155177,36.7,207.03,207.02,6.56611812]
[1759241155477,34.84,207.2,207.02,6.56611812]
[1759241155678,6.56611812,207.13,207.07,6.56611812]
[1759241155869,43.32611812,207.12,206.94,20.8]
[1759241156054,43.32611812,207.12,207.06,6.56611812]
[1759241156255,43.32611812,207.12,207.01,12.07620479]
[1759241156256,4.82835208,207.11,207.05,6.56611812]
[1759241156456,36.76,207.12,207.06,6.56611812]
[1759241156652,6.56611812,207.13,207.07,6.56611812]
[1759241156653,36.74,207.11,207.07,6.56611812]
[1759241157664,36.74,207.11,206.99,12.07772154]
[1759241157872,6.56611812,207.1,207.04,6.56611812]
[1759241158064,11.3949365,207.09,207.03,6.56611812]
[1759241158383,11.3949365,207.09,207.0,6.56611812]
[1759241158384,6.56611812,207.06,207.0,6.56611812]
[1759241158580,36.72,207.05,207.0,6.56611812]
[1759241158765,36.72,207.05,207.01,6.56611812]
[1759241159789,43.28611812,207.05,206.99,6.56611812]
[1759241160168,36.72,207.05,207.0,6.56611812]
[1759241160381,6.56611812,207.02,206.92,4.8327733]
[1759241160568,6.56611812,207.02,206.96,6.56611812]
[1759241160993,6.56611812,207.03,206.96,6.56611812]
[1759241161283,41.54975777,207.05,206.93,6.56611812]
[1759241161284,6.56611812,206.99,206.93,6.56611812]
[1759241161460,36.68,206.98,206.81,166.59559401]
[1759241161660,36.66,206.97,206.84,41.51459739]
[1759241161875,43.22611812,206.96,206.9,6.56611812]
[1759241162068,36.66,206.95,206.84,4.83459739]
[1759241162422,4.83255207,206.93,206.78,0.47525557]
[1759241162586,16.91393224,206.93,206.78,17.40142794]
[1759241162763,6.56611812,206.9,206.84,6.56611812]
[1759241162958,36.66,206.89,206.84,6.56611812]
[1759241163277,43.22611812,206.89,206.78,5.31128383]
[1759241163481,6.56611812,206.88,206.81,6.56611812]
[1759241163881,6.56611812,206.86,206.8,6.56611812]
[1759241164082,36.66,206.89,206.8,6.56611812]
[1759241164274,6.56611812,206.87,206.8,6.56611812]
[1759241164470,6.56611812,206.9,206.84,6.56611812]
[1759241164671,36.68,206.86,206.85,6.56611812]
[1759241164869,36.66,206.86,206.78,17.40134182]
[1759241165183,36.68,206.86,206.78,0.47525557]
[1759241165490,36.68,206.86,206.82,6.56611812]
[1759241166273,36.68,206.86,206.8,6.56611812]
[1759241166474,36.68,206.86,206.81,6.56611812]
[1759241166785,36.66,206.94,206.85,6.56611812]
[1759241166994,6.56611812,206.93,206.86,6.56611812]
[1759241167304,6.56611812,206.91,206.85,6.56611812]
[1759241167493,36.66,206.94,206.86,6.56611812]
[1759241167790,6.56611812,206.93,206.86,6.56611812]
[1759241167995,6.56611812,206.91,206.85,6.56611812]
[1759241168291,6.56611812,206.91,206.79,16.92538323]
[1759241168292,4.83372003,206.88,206.82,6.56611812]
[1759241168491,4.8334454,206.9,206.85,6.56611812]
[1759241168791,6.56611812,206.93,206.87,6.56611812]
[1759241168976,36.82,206.92,206.87,6.56611812]
[1759241169181,36.82,206.92,206.79,4.83582378]
[1759241169372,20.16171213,206.89,206.78,0.47525557]
[1759241169569,6.56611812,206.86,206.8,6.56611812]
[1759241169991,6.56611812,206.86,206.79,6.56611812]
[1759241170385,6.56611812,206.84,206.78,7.04137369]
[1759241170577,6.56611812,206.81,206.78,0.47525557]
[1759241170901,43.52611812,206.8,206.78,0.47525557]
[1759241171191,6.56611812,206.79,206.78,0.47525557]
[1759241171595,36.98,206.79,206.78,0.47525557]
[1759241172002,43.54611812,206.79,206.78,0.47525557]
[1759241172224,36.98,206.79,206.78,0.47525557]
[1759241172503,61.97753591,206.79,206.78,0.47525557]
[1759241172799,48.3819419,206.79,206.78,0.47525557]
[1759241173011,36.98,206.79,206.78,0.47525557]
[1759241173303,41.81582378,206.79,206.78,0.47525557]
[1759241173679,48.3819419,206.79,206.78,0.47525557]
[1759241174073,48.3819419,206.79,206.77,0.1]
[1759241174074,13.59559401,206.78,206.77,1e-08]
[1759241174401,16.92702035,206.77,206.45,20.0]
[1759241174609,20.8,206.7,206.47,28.94339061]
[1759241174907,37.1,206.69,206.56,6.56611812]
[1759241175108,37.1,206.68,206.65,6.56611812]
[1759241175295,37.1,206.68,206.49,13.59559401]
[1759241175296,43.66611812,206.69,206.48,20.0]
[1759241175473,37.08,206.68,206.65,6.56611812]
[1759241175778,20.8,206.73,206.56,6.56611812]
[1759241175779,37.1,206.67,206.56,6.56611812]
[1759241175978,37.1,206.67,206.64,6.56611812]
[1759241176210,37.1,206.67,206.56,27.36611812]
[1759241176498,37.1,206.67,206.57,16.943409]
[1759241176670,20.8,206.76,206.66,6.56611812]
[1759241176871,6.56611812,206.73,206.67,6.56611812]
[1759241177071,6.56611812,206.72,206.66,6.56611812]
[1759241177291,6.56611812,206.72,206.6,20.8]
[1759241177494,6.56611812,206.72,206.65,6.56611812]
[1759241177690,37.1,206.75,206.67,6.56611812]
[1759241177995,37.1,206.75,206.52,74.90621612]
[1759241177996,34.39559401,206.64,206.41,4.84472651]
[1759241178193,6.56611812,206.59,206.41,4.84472651]
[1759241178396,48.56685778,206.58,206.43,12.11064283]
[1759241178693,48.56685778,206.58,206.41,4.84472651]
[1759241178694,37.16,206.57,206.41,4.84472651]
[1759241178994,37.16,206.57,206.51,6.56611812]
[1759241179297,37.16,206.57,206.41,16.95654279]
[1759241179298,37.16,206.57,206.54,6.56611812]
[1759241179489,37.16,206.57,206.42,13.59559401]
[1759241179798,37.16,206.57,206.56,6.56611812]
[1759241179973,35.3,206.63,206.56,6.56611812]
[1759241180176,35.3,206.64,206.49,20.8]
[1759241180396,6.56611812,206.58,206.46,4.84355323]
[1759241180575,43.82611812,206.57,206.46,4.84355323]
[1759241180894,43.82611812,206.57,206.44,20.8]
[1759241181098,6.56611812,206.55,206.42,4.84449181]
[1759241181304,13.59559401,206.62,206.42,16.95572134]
[1759241181601,6.56611812,206.55,206.42,16.95572134]
[1759241181780,37.26,206.61,206.42,16.95572134]
[1759241181781,37.26,206.54,206.47,6.56611812]
[1759241181983,43.84611812,206.53,206.42,16.95572134]
[1759241182190,37.28,206.53,206.47,6.56611812]
[1759241182392,37.28,206.53,206.51,6.56611812]
[1759241182704,24.19437319,206.66,206.51,6.56611812]
[1759241182705,43.84611812,206.58,206.51,6.56611812]
[1759241182888,37.28,206.57,206.51,6.56611812]
[1759241183083,37.28,206.57,206.45,4.84378784]
[1759241183603,37.28,206.57,206.45,16.95325744]
[1759241183997,6.56611812,206.54,206.48,6.56611812]
[1759241184199,37.28,206.57,206.48,6.56611812]
[1759241184414,37.28,206.57,206.48,4.84308407]
[1759241184707,37.28,206.57,206.48,16.95079425]
[1759241184943,37.28,206.57,206.52,6.56611812]
[1759241185087,37.28,206.57,206.53,6.56611812]
[1759241185287,37.28,206.57,206.48,16.95079425]
[1759241185717,6.56611812,206.55,206.48,4.84308407]
[1759241186024,6.56611812,206.54,206.48,6.56611812]
[1759241186509,43.84611812,206.57,206.5,6.56611812]
[1759241186819,37.28,206.57,206.52,6.56611812]
[1759241186995,37.28,206.57,206.53,6.56611812]
[1759241187496,37.28,206.57,206.55,6.56611812]
[1759241187695,37.28,206.57,206.53,6.56611812]
[1759241188210,6.56611812,206.56,206.44,20.8]
[1759241188413,6.56611812,206.56,206.49,6.56611812]
[1759241188595,6.56611812,206.56,206.5,6.56611812]
[1759241188794,6.56611812,206.56,206.48,4.84306832]
[1759241188795,37.28,206.57,206.53,6.56611812]
[1759241189289,37.28,206.57,206.54,6.56611812]
[1759241189491,37.28,206.57,206.56,6.56611812]
[1759241189718,37.28,206.57,206.52,6.56611812]
[1759241190018,42.12100299,206.57,206.4,4.84495173]
[1759241190192,54.22343799,206.57,206.48,6.56611812]
[1759241190392,54.22343799,206.57,206.4,23.52347295]
[1759241190393,42.12100299,206.57,206.49,6.56611812]
[1759241190594,6.56611812,206.55,206.37,1.11698243]
[1759241190920,6.56611812,206.54,206.47,6.56611812]
[1759241191213,37.28,206.57,206.5,6.56611812]